fUST/lending_fUST_20241231
["ID","MTS","AMOUNT","RATE_DAILY","PERIOD"]
[347240998,1735613301334,-503.13408147,0.00019178,2]
[347240999,1735613301356,-200.70421247,0.00019296,2]
[347241000,1735613301379,-472.090711,0.00019452,3]
[347241001,1735613301401,-2001.78932769,0.000195,2]
[347241002,1735613301425,-200.70421247,0.00019573,2]
[347241003,1735613301456,-200.70421247,0.00019851,2]
[347241004,1735613301478,-171.219,0.00019964,2]
[347241005,1735613301501,-500.0,0.00019964,3]
[347241006,1735613301523,-500.0,0.00019964,3]
[347241007,1735613301545,-500.0,0.00019964,3]
[347241008,1735613301568,-500.0,0.00019964,3]
[347241009,1735613301590,-246.6517743,0.00019964,3]
[347241010,1735613301612,-505.268937,0.00019964,3]
[347241011,1735613301726,-500.0,0.00019964,3]
[347241012,1735613301750,-550.32,0.00019964,3]
[347241013,1735613301775,-504.21190854,0.00019964,3]
[347241014,1735613301798,-500.0,0.00019964,3]
[347241015,1735613301824,-500.0,0.00019964,3]
[347241016,1735613301846,-500.0,0.00019964,3]
[347241017,1735613301869,-605.44,0.00019964,3]
[347241018,1735613301892,-500.0,0.00019964,3]
[347241019,1735613301915,-660.19,0.00019964,3]
[347241020,1735613301938,-410.85867374,0.00019964,3]
[347241021,1735613301963,-968.24,0.00019964,3]
[347241022,1735613301986,-500.0,0.00019964,3]
[347241023,1735613302010,-1555.55,0.00019964,3]
[347241024,1735613302032,-601.72,0.00019964,3]
[347241025,1735613302054,-500.0,0.00019964,3]
[347241026,1735613302076,-750.41,0.00019964,3]
[347241027,1735613302099,-500.0,0.00019964,3]
[347241028,1735613302122,-603.81469268,0.00019964,3]
[347241029,1735613302145,-500.0,0.00019964,3]
[347241030,1735613302167,-503.64325475,0.00019964,3]
[347241031,1735613302190,-892.17,0.00019964,3]
[347241032,1735613302214,-500.0,0.00019964,3]
[347241033,1735613302238,-1508.14,0.00019964,3]
[347241034,1735613302260,-508.51973295,0.00019964,3]
[347241035,1735613302282,-508.32666123,0.00019964,3]
[347241036,1735613302305,-500.0,0.00019964,3]
[347241037,1735613302328,-500.0,0.00019964,3]
[347241038,1735613302349,-500.0,0.00019964,3]
[347241039,1735613302373,-500.0,0.00019964,3]
[347241040,1735613302395,-500.0,0.00019964,3]
[347241041,1735613302418,-500.0,0.00019964,3]
[347241042,1735613302440,-790.44,0.00019964,3]
[347241043,1735613302463,-500.0,0.00019964,3]
[347241044,1735613302485,-500.0,0.00019964,3]
[347241045,1735613302509,-900.46,0.00019964,3]
[347241046,1735613302530,-500.0,0.00019964,3]
[347241047,1735613302551,-500.0,0.00019964,3]
[347241048,1735613302575,-500.0,0.00019964,3]
[347241049,1735613302598,-908.43,0.00019964,3]
[347241050,1735613302620,-505.74961326,0.00019964,3]
[347241051,1735613302642,-500.0,0.00019964,3]
[347241052,1735613302664,-500.0,0.00019964,3]
[347241053,1735613302687,-794.91,0.00019964,3]
[347241054,1735613302711,-500.0,0.00019964,3]
[347241055,1735613302735,-500.0,0.00019964,3]
[347241056,1735613302755,-507.71637345,0.00019964,3]
[347241057,1735613302779,-2525.92,0.00019964,3]
[347241058,1735613302802,-500.0,0.00019964,3]
[347241059,1735613302824,-500.0,0.00019964,3]
[347241060,1735613302846,-500.0,0.00019964,3]
[347241061,1735613302867,-422.50052477,0.00019964,3]
[347241062,1735613302890,-16000.0,0.00019965,10]
[347241063,1735613302912,-500.0,0.00019965,3]
[347241064,1735613302935,-500.0,0.00019965,2]
[347241065,1735613302959,-500.0,0.00019965,3]
[347241066,1735613302980,-500.0,0.00019965,3]
[347241067,1735613303002,-500.0,0.00019965,3]
[347241068,1735613303025,-500.0,0.00019965,3]
[347241069,1735613303050,-500.0,0.00019965,3]
[347241070,1735613303074,-3701.17,0.00019965,3]
[347241071,1735613303097,-500.0,0.00019965,3]
[347241072,1735613303122,-14126.92,0.00019965,3]
[347241073,1735613303144,-500.0,0.00019965,3]
[347241074,1735613303168,-578.91991078,0.00019965,3]
[347241075,1735613303190,-500.0,0.00019965,3]
[347241076,1735613303213,-500.0,0.00019965,3]
[347241077,1735613303235,-500.0,0.00019965,3]
[347241078,1735613303257,-500.0,0.00019965,3]
[347241079,1735613303279,-500.0,0.00019965,3]
[347241080,1735613303302,-775.26,0.00019965,3]
[347241081,1735613303326,-775.26,0.00019965,3]
[347241082,1735613303348,-506.81430949,0.00019966,3]
[347241083,1735613303370,-500.0,0.00019966,3]
[347241084,1735613303392,-501.96544865,0.00019966,3]
[347241085,1735613303414,-500.0,0.00019966,3]
[347241086,1735613303436,-501.96268949,0.00019966,3]
[347241087,1735613303459,-463.04549346,0.00019966,3]
[347241088,1735613303482,-505.17790885,0.00019966,3]
[347241089,1735613303504,-502.44004168,0.00019966,3]
[347241090,1735613303527,-500.0,0.00019966,3]
[347241091,1735613303550,-539.22,0.00019966,3]
[347241092,1735613303573,-507.85177517,0.00019966,3]
[347241093,1735613303595,-501.80917834,0.00019966,3]
[347241094,1735613303618,-506.45676653,0.00019966,3]
[347241095,1735613303640,-503.5304079,0.00019966,3]
[347241096,1735613303662,-166.8000205,0.00019966,3]
[347241097,1735613303685,-505.58410097,0.00019966,3]
[347241098,1735613303708,-344.303493,0.00019966,3]
[347241099,1735613303733,-309.71563008,0.00019966,3]
[347241100,1735613303756,-502.00638919,0.00019966,3]
[347241101,1735613303780,-500.0,0.00019966,3]
[347241102,1735613303803,-500.0,0.00019966,3]
[347241103,1735613303828,-505.99695202,0.00019966,3]
[347241104,1735613303850,-500.0,0.00019966,3]
[347241105,1735613303873,-612.11022687,0.00019966,3]
[347241106,1735613303971,-500.0,0.00019966,3]
[347241107,1735613303993,-504.35241904,0.00019966,3]
[347241108,1735613304015,-500.0,0.00019966,3]
[347241109,1735613304037,-500.0,0.00019966,3]
[347241110,1735613304061,-500.0,0.00019966,3]
[347241111,1735613304084,-501.64734811,0.00019966,3]
[347241112,1735613304107,-500.0,0.00019966,3]
[347241113,1735613304131,-500.0,0.00019966,3]
[347241114,1735613304156,-771.3,0.00019966,3]
[347241115,1735613304180,-506.556598,0.00019966,3]
[347241116,1735613304203,-714.78,0.00019966,3]
[347241117,1735613304226,-507.09829382,0.00019966,3]
[347241118,1735613304264,-506.70945957,0.00019966,3]
[347241119,1735613304287,-500.0,0.00019966,3]
[347241120,1735613304309,-500.0,0.00019966,3]
[347241121,1735613304331,-507.81255975,0.00019966,3]
[347241122,1735613304353,-500.0,0.00019966,3]
[347241123,1735613304375,-500.0,0.00019966,3]
[347241124,1735613304399,-709.16,0.00019966,3]
[347241125,1735613304422,-500.0,0.00019966,3]
[347241126,1735613304449,-606.5,0.00019966,3]
[347241127,1735613304472,-500.0,0.00019966,3]
[347241128,1735613304496,-500.0,0.00019966,3]
[347241129,1735613304520,-500.0,0.00019966,3]
[347241130,1735613304544,-824.25,0.00019966,3]
[347241131,1735613304566,-500.0,0.00019966,3]
[347241132,1735613304590,-500.0,0.00019966,3]
[347241133,1735613304616,-1586.01,0.00019966,3]
[347241134,1735613304638,-505.47745864,0.00019966,3]
[347241135,1735613304661,-509.3230762,0.00019966,3]
[347241136,1735613304684,-500.0,0.00019966,3]
[347241137,1735613304707,-500.0,0.00019966,3]
[347241138,1735613304732,-500.0,0.00019966,3]
[347241139,1735613304755,-500.0,0.00019967,3]
[347241140,1735613304780,-500.0,0.00019967,3]
[347241141,1735613304804,-500.0,0.00019967,3]
[347241142,1735613304827,-500.0,0.00019967,3]
[347241143,1735613304850,-500.0,0.00019967,3]
[347241144,1735613304872,-512.3456436,0.00019967,3]
[347241145,1735613304897,-501.11760828,0.00019967,3]
[347241146,1735613304920,-630.29966655,0.00019967,3]
[347241147,1735613304944,-500.0,0.00019967,3]
[347241148,1735613304968,-500.0,0.00019967,3]
[347241149,1735613304998,-503.54195776,0.00019967,3]
[347241150,1735613305021,-500.0,0.00019967,3]
[347241151,1735613305043,-500.0,0.00019967,3]
[347241152,1735613305067,-501.14760395,0.00019967,3]
[347241153,1735613305091,-946.98,0.00019967,3]
[347241154,1735613305115,-946.98,0.00019967,3]
[347241155,1735613305138,-4781.23,0.00019967,3]
[347241156,1735613305161,-723.11,0.00019967,3]
[347241157,1735613305182,-500.0,0.00019967,3]
[347241158,1735613305204,-500.0,0.00019967,3]
[347241159,1735613305227,-503.58364667,0.00019967,3]
[347241160,1735613305250,-500.0,0.00019967,3]
[347241161,1735613305273,-500.0,0.00019967,3]
[347241162,1735613305297,-3050.99,0.00019969,3]
[347241163,1735613305318,-160.04142176,0.00019973,2]
[347241164,1735613305341,-500.0,0.00019973,2]
[347241165,1735613305363,-151.22505069,0.00019998,2]
[347241166,1735613305385,-569.287,0.0002,2]
[347241167,1735613306368,500.0,0.00019964,3]
[347241168,1735613309512,502.16911265,0.00019178,2]
[347241169,1735613309795,514.6443079,0.00019966,3]
[347241170,1735613309825,500.0,0.00019178,2]
[347241171,1735613310088,500.0,0.00019452,3]
[347241172,1735613310183,500.0,0.00019178,2]
[347241173,1735613310374,500.0,0.00019726,3]
[347241174,1735613310402,500.0,0.00019452,3]
[347241175,1735613310647,509.42436259,0.00019726,3]
[347241176,1735613310680,500.0,0.0002,3]
[347241177,1735613311320,500.0,0.00019965,3]
[347241178,1735613312097,475.5368826,0.00019178,2]
[347241179,1735613315567,500.0,0.00019966,3]
[347241180,1735613316627,500.0,0.00019964,3]
[347241181,1735613320677,500.0,0.00019966,3]
[347241182,1735613320711,502.55218581,0.00019178,2]
[347241183,1735613321785,500.0,0.00019964,3]
[347241184,1735613322320,458.56857709,0.00019965,3]
[347241185,1735613325843,500.0,0.00019964,3]
[347241186,1735613326558,500.0,0.00019178,2]
[347241187,1735613326813,492.52635988,0.00019452,3]
[347241188,1735613328659,504.48393133,0.00019178,2]
[347241189,1735613329200,514.91,0.00019966,3]
[347241190,1735613333089,500.0,0.00019964,3]
[347241191,1735613335186,500.0,0.00019966,3]
[347241192,1735613338868,500.0,0.00019178,2]
[347241193,1735613339122,503.5142287,0.00019452,3]
[347241194,1735613343896,500.0,0.00019964,3]
[347241195,1735613345382,927.9,0.00019964,3]
[347241196,1735613346153,581.23,0.00019966,3]
[347241197,1735613348630,500.0,0.00019178,2]
[347241198,1735613348877,503.43977619,0.00019452,3]
[347241199,1735613349436,2923.87,0.00019968,3]
[347241200,1735613356727,102.26114199,0.00019178,2]
[347241201,1735613362962,-399.44066373,0.00019178,2]
[347241202,1735613362988,-404.58327094,0.00019178,2]
[347241203,1735613387936,-101.52836455,0.00019178,2]
[347241204,1735613387961,-208.2137268,0.00019178,2]
[347241252,1735613432417,-291.7862732,0.00019178,2]
[347241254,1735613432426,-1490.74,0.00019178,2]
[347241256,1735613432436,-500.0,0.00019178,2]
[347241258,1735613432445,-201.43580673,0.00019178,2]
[347241260,1735613432455,-500.0,0.00019178,2]
[347241262,1735613432465,-500.0,0.00019178,2]
[347241264,1735613432474,-500.0,0.00019178,2]
[347241266,1735613432484,-506.9535283,0.00019178,2]
[347241268,1735613432493,-500.0,0.00019178,2]
[347241270,1735613432502,-300.0,0.00019451,2]
[347241272,1735613432511,-130.19765611,0.00019452,3]
[347241287,1735613432647,-369.80234389,0.00019452,3]
[347241288,1735613432656,-1476.94999784,0.00019452,3]
[347241289,1735613432668,-13.79000216,0.00019452,3]
[347241290,1735613432678,-500.0,0.00019452,3]
[347241292,1735613432687,-500.0,0.00019452,3]
[347241293,1735613432696,-500.0,0.00019452,3]
[347241294,1735613432705,-642.16,0.00019452,3]
[347241295,1735613432714,-1490.74,0.00019726,3]
[347241296,1735613432723,-504.27851488,0.00019726,3]
[347241297,1735613432732,-646.66046405,0.00019726,3]
[347241298,1735613432741,-500.0,0.00019726,3]
[347241299,1735613432752,-3546.96,0.00019964,3]
[347241300,1735613432761,-576.65,0.00019964,3]
[347241301,1735613432771,-865.71,0.00019964,3]
[347241303,1735613432780,-719.15,0.00019964,3]
[347241304,1735613432789,-500.0,0.00019964,3]
[347241306,1735613432799,-500.0,0.00019964,3]
[347241308,1735613432808,-500.0,0.00019964,3]
[347241310,1735613432817,-854.99,0.00019964,3]
[347241312,1735613432827,-260.54611065,0.00019964,3]
[347241315,1735613432837,-1445.3,0.00019964,3]
[347241317,1735613432846,-865.71,0.00019965,3]
[347241319,1735613432855,-865.71,0.00019965,3]
[347241321,1735613432863,-500.0,0.00019966,3]
[347241322,1735613432872,-500.0,0.00019966,3]
[347241325,1735613432882,-500.0,0.00019966,3]
[347241326,1735613432891,-507.01741311,0.00019968,3]
[347241328,1735613432900,-1180.63462105,0.0002,3]
[347241367,1735613438426,-360.0,0.00019964,3]
[347241368,1735613438439,-324.22683165,0.00019964,3]
[347241369,1735613438450,-621.20903103,0.00019964,3]
[347241370,1735613438462,-1644.01833806,0.00019964,3]
[347241371,1735613438473,-582.27579926,0.00019964,3]
[347241372,1735613438482,-257.72420066,0.00019965,3]
[347241373,1735613438494,-242.27579934,0.00019965,3]
[347241374,1735613438503,-310.10537895,0.0002,3]
[347241375,1735613438512,-500.0,0.0002,3]
[347241376,1735613438521,-807.58981922,0.00020138,2]
[347241377,1735613438530,-160.56337,0.00020138,2]
[347241378,1735613438539,-500.0,0.00020238,3]
[347241379,1735613438548,-504.82195555,0.00020238,3]
[347241380,1735613438557,-500.0,0.00020238,3]
[347241381,1735613438567,-500.0,0.00020238,3]
[347241382,1735613438576,-500.0,0.00020238,3]
[347241383,1735613438585,-474.64367694,0.00020238,3]
[347241397,1735613440338,-75.67632306,0.00020238,3]
[347241399,1735613440347,-500.0,0.00020238,3]
[347241400,1735613440357,-605.44,0.00020238,3]
[347241401,1735613440367,-500.0,0.00020238,3]
[347241402,1735613440376,-117.88367694,0.00020238,3]
[347241403,1735613440389,-542.30632306,0.00020238,3]
[347241404,1735613440399,-500.0,0.00020238,3]
[347241405,1735613440408,-500.0,0.00020238,3]
[347241406,1735613440417,-500.0,0.00020238,3]
[347241407,1735613440427,-500.0,0.00020238,3]
[347241408,1735613440436,-790.44,0.00020238,3]
[347241409,1735613440446,-233.97133606,0.00020238,3]
[347241410,1735613440455,-500.0,0.00020238,3]
[347241411,1735613440465,-900.46,0.00020238,3]
[347241412,1735613440474,-505.58772709,0.00020238,3]
[347241413,1735613440580,-500.0,0.00020238,3]
[347241414,1735613440591,-504.56439719,0.00020238,3]
[347241415,1735613440600,-908.43,0.00020238,3]
[347241416,1735613440609,-500.0,0.00020238,3]
[347241417,1735613440618,-794.91,0.00020238,3]
[347241418,1735613440628,-500.0,0.00020238,3]
[347241419,1735613440637,-507.38271872,0.00020238,3]
[347241420,1735613440647,-2525.92,0.00020238,3]
[347241421,1735613440656,-500.0,0.00020238,3]
[347241422,1735613440665,-500.0,0.00020238,3]
[347241423,1735613440675,-312.83794785,0.00020238,3]
[347241424,1735613440684,-500.0,0.00020238,3]
[347241425,1735613440694,-500.0,0.00020238,3]
[347241426,1735613440704,-500.0,0.00020238,3]
[347241427,1735613440713,-616.92510479,0.00020238,3]
[347241428,1735613440722,-500.0,0.00020238,3]
[347241429,1735613440731,-927.9,0.00020238,3]
[347241430,1735613440740,-3546.96,0.00020238,3]
[347241431,1735613440750,-576.65,0.00020238,3]
[347241432,1735613440763,-719.15,0.00020238,3]
[347241433,1735613440772,-500.0,0.00020238,3]
[347241434,1735613440783,-500.0,0.00020238,3]
[347241435,1735613440792,-465.76726474,0.00020238,3]
[347241436,1735613440803,-854.99,0.00020238,3]
[347241437,1735613440813,-1445.3,0.00020238,3]
[347241438,1735613440822,-3531.73,0.00020238,3]
[347241439,1735613440833,-500.0,0.00020239,3]
[347241440,1735613440843,-507.36541264,0.00020239,3]
[347241441,1735613440852,-500.0,0.00020239,3]
[347241442,1735613440861,-503.34171047,0.00020239,3]
[347241443,1735613440871,-500.0,0.00020239,3]
[347241444,1735613440880,-865.71,0.00020239,3]
[347241445,1735613440890,-865.71,0.00020239,3]
[347241446,1735613440899,-500.0,0.00020239,3]
[347241447,1735613440908,-539.22,0.0002024,3]
[347241448,1735613440918,-500.0,0.0002024,3]
[347241449,1735613440927,-500.0,0.0002024,3]
[347241450,1735613440937,-496.87153228,0.0002024,3]
[347241451,1735613440947,-500.0,0.0002024,3]
[347241452,1735613440956,-500.0,0.0002024,3]
[347241453,1735613440965,-500.0,0.0002024,3]
[347241454,1735613440975,-771.3,0.0002024,3]
[347241455,1735613440984,-946.98,0.0002024,3]
[347241456,1735613440994,-714.78,0.0002024,3]
[347241457,1735613441003,-500.0,0.0002024,3]
[347241458,1735613441012,-500.0,0.0002024,3]
[347241459,1735613441021,-500.0,0.0002024,3]
[347241460,1735613441030,-500.0,0.0002024,3]
[347241461,1735613441039,-709.16,0.0002024,3]
[347241462,1735613441048,-500.0,0.0002024,3]
[347241463,1735613441058,-500.0,0.0002024,3]
[347241464,1735613441067,-824.25,0.0002024,3]
[347241465,1735613441076,-500.0,0.0002024,3]
[347241466,1735613441086,-500.0,0.0002024,3]
[347241467,1735613441095,-1586.01,0.0002024,3]
[347241468,1735613441104,-500.0,0.0002024,3]
[347241469,1735613441115,-500.0,0.0002024,3]
[347241470,1735613441124,-500.0,0.0002024,3]
[347241471,1735613441133,-500.0,0.0002024,3]
[347241472,1735613441142,-500.0,0.0002024,3]
[347241473,1735613441151,-286.55196084,0.0002024,3]
[347241474,1735613441160,-514.91,0.0002024,3]
[347241475,1735613441170,-500.0,0.0002024,3]
[347241476,1735613441179,-581.23,0.0002024,3]
[347241477,1735613441188,-500.0,0.0002024,3]
[347241478,1735613441198,-500.0,0.00020241,3]
[347241479,1735613441207,-946.98,0.00020241,3]
[347241480,1735613441217,-4781.23,0.00020241,3]
[347241481,1735613441226,-723.11,0.00020241,3]
[347241482,1735613441235,-500.0,0.00020241,3]
[347241483,1735613441245,-292.01851436,0.00020241,3]
[347241484,1735613441255,-500.0,0.00020241,3]
[347241485,1735613441265,-2923.87,0.00020242,3]
[347241486,1735613441276,-160.0,0.00020273,2]
[347241487,1735613441285,-500.0,0.00020273,3]
[347241488,1735613441295,-1490.74,0.00020273,3]
[347241489,1735613441305,-500.0,0.00020273,3]
[347241490,1735613441315,-807.58981921,0.00020344,2]
[347241491,1735613441324,-160.56336997,0.00020345,2]
[347241492,1735613441334,-179.320887,0.00020447,2]
[347241493,1735613441351,-163.1,0.000205,2]
[347241494,1735613441361,-3569.65055833,0.000205,2]
[347241495,1735613441370,-500.0,0.00020512,3]
[347241496,1735613441379,-528.62750326,0.00020512,3]
[347241497,1735613441389,-500.0,0.00020512,3]
[347241498,1735613441398,-500.0,0.00020512,3]
[347241499,1735613441407,-550.32,0.00020512,3]
[347241500,1735613441417,-500.0,0.00020512,3]
[347241501,1735613441426,-605.44,0.00020512,3]
[347241502,1735613441435,-500.0,0.00020512,3]
[347241503,1735613441444,-660.19,0.00020512,3]
[347241504,1735613441453,-500.0,0.00020512,3]
[347241505,1735613441462,-500.0,0.00020512,3]
[347241506,1735613441470,-643.53653384,0.00020512,3]
[347241507,1735613441480,-790.44,0.00020512,3]
[347241508,1735613441489,-503.13766509,0.00020512,3]
[347241509,1735613441498,-900.46,0.00020512,3]
[347241510,1735613441507,-507.24775932,0.00020512,3]
[347241511,1735613441516,-908.43,0.00020512,3]
[347241512,1735613441526,-500.0,0.00020512,3]
[347241513,1735613441535,-794.91,0.00020512,3]
[347241514,1735613441544,-500.0,0.00020512,3]
[347241515,1735613441554,-2525.92,0.00020512,3]
[347241516,1735613441563,-500.0,0.00020512,3]
[347241517,1735613441572,-500.0,0.00020512,3]
[347241518,1735613441582,-500.0,0.00020512,3]
[347241519,1735613441591,-416.5910513,0.00020512,3]
[347241520,1735613441601,-500.0,0.00020512,3]
[347241521,1735613441610,-435.09722488,0.00020512,3]
[347241522,1735613441619,-927.9,0.00020512,3]
[347241523,1735613441629,-3546.96,0.00020512,3]
[347241524,1735613441638,-576.65,0.00020512,3]
[347241525,1735613441647,-719.15,0.00020512,3]
[347241526,1735613441657,-865.71,0.00020512,3]
[347241527,1735613441666,-500.0,0.00020512,3]
[347241528,1735613441675,-414.77147382,0.00020512,3]
[347241529,1735613441685,-854.99,0.00020512,3]
[347241530,1735613441694,-1445.3,0.00020512,3]
[347241531,1735613441703,-3531.73,0.00020512,3]
[347241532,1735613441712,-500.0,0.00020513,3]
[347241533,1735613441722,-500.0,0.00020513,3]
[347241534,1735613441731,-500.0,0.00020513,3]
[347241535,1735613441740,-503.61402269,0.00020513,3]
[347241536,1735613441750,-151.0,0.00020513,2]
[347241537,1735613441762,-151.0,0.00020513,2]
[347241538,1735613441771,-865.71,0.00020513,3]
[347241539,1735613441780,-500.0,0.00020513,3]
[347241540,1735613441790,-539.22,0.00020514,3]
[347241541,1735613441800,-500.0,0.00020514,3]
[347241542,1735613441811,-771.3,0.00020514,3]
[347241543,1735613441822,-946.98,0.00020514,3]
[347241544,1735613441833,-714.78,0.00020514,3]
[347241545,1735613441842,-500.0,0.00020514,3]
[347241546,1735613441851,-500.0,0.00020514,3]
[347241547,1735613441860,-500.0,0.00020514,3]
[347241548,1735613441869,-507.77371567,0.00020514,3]
[347241549,1735613441879,-709.16,0.00020514,3]
[347241550,1735613441887,-518.64470554,0.00020514,3]
[347241551,1735613441896,-500.0,0.00020514,3]
[347241552,1735613441906,-824.25,0.00020514,3]
[347241553,1735613441915,-500.0,0.00020514,3]
[347241554,1735613441924,-500.0,0.00020514,3]
[347241555,1735613441933,-1586.01,0.00020514,3]
[347241556,1735613441942,-500.0,0.00020514,3]
[347241557,1735613441951,-245.20731657,0.00020514,3]
[347241558,1735613441960,-500.0,0.00020514,3]
[347241559,1735613441970,-500.0,0.00020514,3]
[347241560,1735613441979,-514.91,0.00020514,3]
[347241561,1735613441988,-626.31051443,0.00020514,3]
[347241562,1735613441997,-581.23,0.00020514,3]
[347241563,1735613442006,-500.0,0.00020514,3]
[347241564,1735613442016,-946.98,0.00020515,3]
[347241565,1735613442025,-4781.23,0.00020515,3]
[347241566,1735613442034,-723.11,0.00020515,3]
[347241567,1735613442044,-2923.87,0.00020516,3]
[347241568,1735613442054,-865.71,0.00020516,3]
[347241569,1735613442063,-946.98,0.00020517,3]
[347241570,1735613442073,-368.816022,0.00020517,2]
[347241571,1735613442082,-151.0,0.00020517,2]
[347241572,1735613442091,-368.816022,0.00020517,2]
[347241573,1735613442100,-151.0,0.00020517,2]
[347241574,1735613442111,-151.0,0.00020517,2]
[347241575,1735613442120,-151.0,0.00020517,2]
[347241576,1735613442131,-151.0,0.00020517,2]
[347241577,1735613442140,-151.0,0.00020517,2]
[347241578,1735613442149,-167.889048,0.00020521,2]
[347241579,1735613442159,-183.07790763,0.00020547,3]
[347241580,1735613442169,-1490.74,0.00020547,3]
[347241581,1735613442178,-500.0,0.00020547,3]
[347241582,1735613442187,-807.58981921,0.0002055,2]
[347241583,1735613442197,-160.56336997,0.00020552,2]
[347241584,1735613442206,-7141.40237949,0.00020731,2]
[347241585,1735613442215,-807.58981921,0.00020755,2]
[347241586,1735613442225,-160.56336997,0.00020758,2]
[347241587,1735613442234,-500.0,0.00020763,3]
[347241588,1735613442243,-500.0,0.00020786,3]
[347241589,1735613442253,-500.0,0.00020786,3]
[347241590,1735613442262,-575.01883866,0.00020786,3]
[347241591,1735613442271,-550.32,0.00020786,3]
[347241592,1735613442281,-500.0,0.00020786,3]
[347241593,1735613442291,-605.44,0.00020786,3]
[347241594,1735613442300,-500.0,0.00020786,3]
[347241595,1735613442312,-660.19,0.00020786,3]
[347241596,1735613442321,-500.0,0.00020786,3]
[347241597,1735613442331,-511.49320505,0.00020786,3]
[347241598,1735613442340,-790.44,0.00020786,3]
[347241599,1735613442350,-900.46,0.00020786,3]
[347241600,1735613442359,-908.43,0.00020786,3]
[347241601,1735613442368,-794.91,0.00020786,3]
[347241602,1735613442377,-500.0,0.00020786,3]
[347241603,1735613442387,-2525.92,0.00020786,3]
[347241604,1735613442397,-500.0,0.00020786,3]
[347241605,1735613442406,-500.0,0.00020786,3]
[347241606,1735613442416,-500.0,0.00020786,3]
[347241607,1735613442426,-500.0,0.00020786,3]
[347241608,1735613442435,-927.9,0.00020786,3]
[347241609,1735613442444,-3546.96,0.00020786,3]
[347241610,1735613442452,-576.65,0.00020786,3]
[347241611,1735613442461,-719.15,0.00020786,3]
[347241612,1735613442471,-500.0,0.00020786,3]
[347241613,1735613442480,-854.99,0.00020786,3]
[347241614,1735613442490,-1445.3,0.00020786,3]
[347241615,1735613442499,-183.2581149,0.00020786,2]
[347241616,1735613442508,-491.33594827,0.00020786,2]
[347241617,1735613442518,-392.26735781,0.00020786,2]
[347241618,1735613442527,-640.79630699,0.00020786,2]
[347241619,1735613442536,-500.0,0.00020786,2]
[347241620,1735613442545,-500.0,0.00020786,2]
[347241621,1735613442554,-500.0,0.00020786,2]
[347241622,1735613442563,-3531.73,0.00020786,3]
[347241623,1735613442572,-500.0,0.00020787,3]
[347241624,1735613442581,-500.0,0.00020787,3]
[347241625,1735613442591,-500.0,0.00020787,3]
[347241626,1735613442600,-151.0,0.00020787,2]
[347241627,1735613442609,-151.0,0.00020787,2]
[347241628,1735613442618,-865.71,0.00020787,3]
[347241629,1735613442627,-422.20742485,0.00020787,3]
[347241630,1735613442637,-539.22,0.00020788,3]
[347241631,1735613442646,-500.0,0.00020788,3]
[347241632,1735613442655,-771.3,0.00020788,3]
[347241633,1735613442664,-714.78,0.00020788,3]
[347241634,1735613442673,-433.11546034,0.00020788,3]